[Event "Early-Titled-Tuesday-Blitz-January-16-2024"]
[Site "Chess.com"]
[Date "2024.01.16"]
[Round "9"]
[White "Witik"]
[Black "Leebit02"]
[Result "1/2-1/2"]
[WhiteElo "2753"]
[BlackElo "2565"]
[TimeControl "180+1"]
[EndTime "9:49:43 PST"]
[Termination "Game drawn by agreement"]

1. d4 {[%clk 0:02:58.1]} 1... d5 {[%clk 0:03:00]} 2. c4 {[%clk 0:02:58.2]} 2...
dxc4 {[%clk 0:03:00.4]} 3. Nf3 {[%clk 0:02:58.1]} 3... Nf6 {[%clk 0:03:00.1]} 4.
e3 {[%clk 0:02:53.3]} 4... e6 {[%clk 0:03:00.3]} 5. Bxc4 {[%clk 0:02:53.4]} 5...
c5 {[%clk 0:03:00.5]} 6. O-O {[%clk 0:02:53]} 6... a6 {[%clk 0:03:01]} 7. dxc5
{[%clk 0:02:52.8]} 7... Bxc5 {[%clk 0:02:57.9]} 8. Qxd8+ {[%clk 0:02:50.6]} 8...
Kxd8 {[%clk 0:02:58.5]} 9. Be2 {[%clk 0:02:49.3]} 9... Ke7 {[%clk 0:02:58.4]}
10. Ne5 {[%clk 0:02:42.6]} 10... Nbd7 {[%clk 0:02:53.1]} 11. Nd3 {[%clk
0:02:40.3]} 11... Bd6 {[%clk 0:02:44.4]} 12. Nd2 {[%clk 0:02:40.1]} 12... Nb6
{[%clk 0:02:14.7]} 13. e4 {[%clk 0:02:25.5]} 13... e5 {[%clk 0:01:54.7]} 14. b3
{[%clk 0:02:12.6]} 14... Be6 {[%clk 0:01:46.9]} 15. Bb2 {[%clk 0:02:08]} 15...
Nfd7 {[%clk 0:01:38.3]} 16. Rfd1 {[%clk 0:01:34.5]} 16... Rac8 {[%clk
0:01:36.1]} 17. Nf1 {[%clk 0:01:29.4]} 17... f6 {[%clk 0:01:32.6]} 18. Ne3
{[%clk 0:01:29.2]} 18... Nc5 {[%clk 0:01:30.4]} 19. Nf5+ {[%clk 0:01:21.3]}
19... Bxf5 {[%clk 0:01:29.8]} 20. exf5 {[%clk 0:01:22.2]} 20... Rhd8 {[%clk
0:01:25.1]} 21. Bf3 {[%clk 0:01:14.5]} 21... Nxd3 {[%clk 0:01:12.8]} 22. Rxd3
{[%clk 0:01:14.4]} 22... Rc7 {[%clk 0:01:02.4]} 23. Rad1 {[%clk 0:01:11]} 23...
Nc8 {[%clk 0:00:50.8]} 24. g3 {[%clk 0:01:05.4]} 24... Rcd7 {[%clk 0:00:49.7]}
25. Kf1 {[%clk 0:00:57.6]} 25... g6 {[%clk 0:00:50]} 26. Be4 {[%clk 0:00:52]}
26... g5 {[%clk 0:00:48.4]} 27. Ke2 {[%clk 0:00:51.5]} 27... Rc7 {[%clk
0:00:37.7]} 28. R3d2 {[%clk 0:00:37.7]} 28... Rdd7 {[%clk 0:00:37.8]} 29. a3
{[%clk 0:00:34.7]} 29... Na7 {[%clk 0:00:37.9]} 30. h4 {[%clk 0:00:25.7]} 30...
gxh4 {[%clk 0:00:31.1]} 31. Rh1 {[%clk 0:00:25.6]} 31... hxg3 {[%clk 0:00:29.8]}
32. Rxh7+ {[%clk 0:00:25.5]} 32... Ke8 {[%clk 0:00:29.8]} 33. Rh8+ {[%clk
0:00:24.3]} 33... Bf8 {[%clk 0:00:27.3]} 34. fxg3 {[%clk 0:00:18.2]} 34... Rxd2+
{[%clk 0:00:26.8]} 35. Kxd2 {[%clk 0:00:18.6]} 35... Nb5 {[%clk 0:00:25.6]} 36.
a4 {[%clk 0:00:14.4]} 36... Nd6 {[%clk 0:00:25.9]} 37. Bb1 {[%clk 0:00:04.1]}
37... Rd7 {[%clk 0:00:25.4]} 38. Ke2 {[%clk 0:00:03.8]} 38... Nf7 {[%clk
0:00:24.6]} 39. Rh1 {[%clk 0:00:03.4]} 39... Bb4 {[%clk 0:00:19.4]} 40. Rd1
{[%clk 0:00:02.8]} 40... Rxd1 {[%clk 0:00:19]} 41. Kxd1 {[%clk 0:00:03.7]} 41...
Kd7 {[%clk 0:00:18.9]} 42. g4 {[%clk 0:00:03.2]} 42... Nh6 {[%clk 0:00:17.9]}
43. Be4 {[%clk 0:00:03.7]} 43... Nxg4 {[%clk 0:00:17.8]} 44. Bxb7 {[%clk
0:00:03.9]} 44... a5 {[%clk 0:00:18.3]} 45. Ke2 {[%clk 0:00:02.4]} 45... Nh6
{[%clk 0:00:18.1]} 46. Be4 {[%clk 0:00:02.1]} 46... Kd6 {[%clk 0:00:18]} 47. Bc1
{[%clk 0:00:02.6]} 47... Nf7 {[%clk 0:00:17.6]} 48. Kd3 {[%clk 0:00:03.3]} 48...
Ng5 {[%clk 0:00:16.6]} 49. Bg2 {[%clk 0:00:03.7]} 49... Nf7 {[%clk 0:00:15.3]}
50. Be3 {[%clk 0:00:03.5]} 50... Nd8 {[%clk 0:00:15.1]} 51. Kc4 {[%clk
0:00:03.9]} 51... Nc6 {[%clk 0:00:14.9]} 52. Be4 {[%clk 0:00:04]} 52... Nd4
{[%clk 0:00:13.7]} 53. Bd3 {[%clk 0:00:04]} 53... Be1 {[%clk 0:00:10.8]} 54. Bh6
{[%clk 0:00:04.3]} 54... Ke7 {[%clk 0:00:10]} 55. Kd5 {[%clk 0:00:03.9]} 55...
Bb4 {[%clk 0:00:10]} 56. Kc4 {[%clk 0:00:03.3]} 56... Be1 {[%clk 0:00:10.1]} 57.
Be4 {[%clk 0:00:03.7]} 57... Bb4 {[%clk 0:00:10]} 58. Be3 {[%clk 0:00:04.3]}
58... Be1 {[%clk 0:00:09.6]} 59. Bg1 {[%clk 0:00:04]} 59... Bb4 {[%clk
0:00:09.4]} 60. Bf2 {[%clk 0:00:03.1]} 60... Bd2 {[%clk 0:00:09.2]} 61. Bh4
{[%clk 0:00:03.4]} 61... Bb4 {[%clk 0:00:08.7]} 62. Bg3 {[%clk 0:00:03.6]} 62...
Bd2 {[%clk 0:00:08.4]} 63. Bf2 {[%clk 0:00:04]} 63... Bb4 {[%clk 0:00:08.8]} 64.
Be3 {[%clk 0:00:04]} 64... Be1 {[%clk 0:00:09]} 65. Bc1 {[%clk 0:00:04.6]} 65...
Bb4 {[%clk 0:00:09.1]} 66. Bb2 {[%clk 0:00:05.3]} 66... Kd6 {[%clk 0:00:09.3]}
67. Bxd4 {[%clk 0:00:04.2]} 67... exd4 {[%clk 0:00:09.4]} 68. Kxd4 {[%clk
0:00:04.7]} 68... Be1 {[%clk 0:00:09.8]} 69. Bc2 {[%clk 0:00:05]} 69... Bb4
{[%clk 0:00:10.2]} 70. Kc4 {[%clk 0:00:05.7]} 70... Be1 {[%clk 0:00:10.5]} 71.
Kb5 {[%clk 0:00:06.3]} 71... Bb4 {[%clk 0:00:10.8]} 72. Bb1 {[%clk 0:00:07]}
72... Be1 {[%clk 0:00:11.1]} 73. Kb6 {[%clk 0:00:07.2]} 73... Bb4 {[%clk
0:00:11.3]} 74. Kb7 {[%clk 0:00:07.8]} 74... Be1 {[%clk 0:00:11.6]} 75. Kb8
{[%clk 0:00:08.5]} 75... Bc3 {[%clk 0:00:11.3]} 76. Kc8 {[%clk 0:00:09.1]} 76...
Bb4 {[%clk 0:00:11.9]} 77. Kd8 {[%clk 0:00:09.5]} 77... Ke5 {[%clk 0:00:11.6]}
78. Ke8 {[%clk 0:00:08.8]} 78... Bc3 {[%clk 0:00:12.1]} 79. Kf7 {[%clk
0:00:09.2]} 79... Bb4 {[%clk 0:00:12.7]} 80. Kg6 {[%clk 0:00:09.3]} 80... Bc3
{[%clk 0:00:13.3]} 1/2-1/2

[Event "Early-Titled-Tuesday-Blitz-January-16-2024"]
[Site "Chess.com"]
[Date "2024.01.16"]
[Round "9"]
[White "Felix-Rose"]
[Black "NewYearGirl"]
[Result "1-0"]
[WhiteElo "2233"]
[BlackElo "2375"]
[TimeControl "180+1"]
[EndTime "9:50:02 PST"]
[Termination "Felix-Rose won by resignation"]

1. e4 {[%clk 0:03:00.3]} 1... c5 {[%clk 0:02:59.9]} 2. Nf3 {[%clk 0:03:00.3]}
2... d6 {[%clk 0:03:00.5]} 3. d4 {[%clk 0:03:00.1]} 3... cxd4 {[%clk 0:03:01.4]}
4. Nxd4 {[%clk 0:03:01]} 4... Nf6 {[%clk 0:03:02.1]} 5. Nc3 {[%clk 0:03:01.2]}
5... g6 {[%clk 0:03:02.8]} 6. Be3 {[%clk 0:03:01]} 6... Bg7 {[%clk 0:03:03.4]}
7. f3 {[%clk 0:03:01.6]} 7... O-O {[%clk 0:03:03.6]} 8. Qd2 {[%clk 0:03:02.1]}
8... Nc6 {[%clk 0:03:04.2]} 9. O-O-O {[%clk 0:03:02.6]} 9... d5 {[%clk
0:03:04.8]} 10. Qe1 {[%clk 0:03:03]} 10... e5 {[%clk 0:03:03.4]} 11. Nxc6 {[%clk
0:03:03.1]} 11... bxc6 {[%clk 0:03:04.3]} 12. exd5 {[%clk 0:03:03.6]} 12... Nxd5
{[%clk 0:03:05.2]} 13. Ne4 {[%clk 0:03:02.3]} 13... Qc7 {[%clk 0:02:46.9]} 14.
Bc5 {[%clk 0:03:00.8]} 14... Rd8 {[%clk 0:02:42.7]} 15. h4 {[%clk 0:02:48.5]}
15... Rb8 {[%clk 0:02:22.1]} 16. h5 {[%clk 0:02:41.7]} 16... Be6 {[%clk
0:01:58.5]} 17. g4 {[%clk 0:02:29.2]} 17... Qb7 {[%clk 0:01:37.5]} 18. b3 {[%clk
0:02:22.1]} 18... Nf4 {[%clk 0:01:33.3]} 19. Rxd8+ {[%clk 0:02:18]} 19... Rxd8
{[%clk 0:01:32.4]} 20. hxg6 {[%clk 0:02:12.7]} 20... fxg6 {[%clk 0:01:32.2]} 21.
Qh4 {[%clk 0:01:59.1]} 21... Qd7 {[%clk 0:01:14.4]} 22. Qxh7+ {[%clk 0:01:51.7]}
22... Kf7 {[%clk 0:01:14.9]} 23. Ng5+ {[%clk 0:01:43.7]} 23... Kf6 {[%clk
0:01:09.4]} 24. Ne4+ {[%clk 0:01:13.7]} 24... Kf7 {[%clk 0:01:09.6]} 25. Qh4
{[%clk 0:01:04.7]} 25... Rh8 {[%clk 0:00:35.4]} 26. Qxh8 {[%clk 0:00:45.3]}
26... Bxh8 {[%clk 0:00:36.3]} 27. Rxh8 {[%clk 0:00:45.8]} 27... Kg7 {[%clk
0:00:29.7]} 28. Rh7+ {[%clk 0:00:40.5]} 28... Kxh7 {[%clk 0:00:28.5]} 29. Nf6+
{[%clk 0:00:40.8]} 29... Kh6 {[%clk 0:00:27.9]} 30. Nxd7 {[%clk 0:00:41.7]}
30... Bxd7 {[%clk 0:00:28.8]} 31. Bxa7 {[%clk 0:00:41.8]} 31... Kg5 {[%clk
0:00:26.3]} 32. Bb8 {[%clk 0:00:40.1]} 32... Kf6 {[%clk 0:00:23.3]} 33. a4
{[%clk 0:00:39.4]} 33... Be6 {[%clk 0:00:22.8]} 34. a5 {[%clk 0:00:38.8]} 34...
Bd5 {[%clk 0:00:23.4]} 35. Bc4 {[%clk 0:00:30.8]} 35... Bxf3 {[%clk 0:00:23.2]}
36. b4 {[%clk 0:00:21.4]} 36... Bxg4 {[%clk 0:00:23]} 37. a6 {[%clk 0:00:19.2]}
37... Bf3 {[%clk 0:00:22.9]} 38. a7 {[%clk 0:00:18.7]} 38... c5 {[%clk
0:00:23.3]} 39. bxc5 {[%clk 0:00:17.4]} 39... g5 {[%clk 0:00:23.9]} 40. Bb5
{[%clk 0:00:17.3]} 40... Ba8 {[%clk 0:00:23.9]} 41. c6 {[%clk 0:00:16.7]} 41...
g4 {[%clk 0:00:24.4]} 42. c7 {[%clk 0:00:16.8]} 42... g3 {[%clk 0:00:22.5]} 43.
c8=Q {[%clk 0:00:16.5]} 43... g2 {[%clk 0:00:23.4]} 44. Qf8+ {[%clk 0:00:15.8]}
44... Kg5 {[%clk 0:00:24.1]} 45. Qg7+ {[%clk 0:00:15.8]} 45... Ng6 {[%clk
0:00:24.6]} 46. Bxe5 {[%clk 0:00:11.3]} 46... g1=Q+ {[%clk 0:00:25.5]} 47. Kb2
{[%clk 0:00:11.5]} 47... Qf2 {[%clk 0:00:19.7]} 48. Bc3 {[%clk 0:00:09.9]} 48...
Be4 {[%clk 0:00:19]} 49. Ba4 {[%clk 0:00:08.9]} 49... Qf5 {[%clk 0:00:15.9]} 50.
Qc7 {[%clk 0:00:07.4]} 50... Qf2 {[%clk 0:00:14.8]} 51. Qb8 {[%clk 0:00:07.1]}
51... Nf4 {[%clk 0:00:15.1]} 52. a8=Q {[%clk 0:00:06.8]} 52... Nd3+ {[%clk
0:00:15.8]} 53. Ka3 {[%clk 0:00:05.8]} 53... Qc5+ {[%clk 0:00:15.6]} 54. Bb4
{[%clk 0:00:05.6]} 54... Nxb4 {[%clk 0:00:15.9]} 55. Qxb4 {[%clk 0:00:05.7]}
55... Qe3+ {[%clk 0:00:16.2]} 56. Qb3 {[%clk 0:00:05.9]} 56... Qc1+ {[%clk
0:00:17.1]} 57. Kb4 {[%clk 0:00:05.9]} 57... Qe1+ {[%clk 0:00:17.4]} 58. Qc3
{[%clk 0:00:06.6]} 58... Qh4 {[%clk 0:00:15.6]} 59. Qg8+ {[%clk 0:00:06.5]}
59... Kf4 {[%clk 0:00:15.7]} 60. Qc7+ {[%clk 0:00:06.6]} 60... Ke3 {[%clk
0:00:15.8]} 61. Qc3+ {[%clk 0:00:06.1]} 61... Ke2 {[%clk 0:00:15.2]} 62. Bb5+
{[%clk 0:00:04.7]} 62... Bd3+ {[%clk 0:00:15.5]} 63. Bc4 {[%clk 0:00:03.4]}
63... Qe7+ {[%clk 0:00:10.4]} 64. Kb3 {[%clk 0:00:02.5]} 64... Qb7+ {[%clk
0:00:10.4]} 65. Ka2 {[%clk 0:00:02.9]} 65... Qa7+ {[%clk 0:00:10.4]} 66. Kb2
{[%clk 0:00:02.9]} 66... Qb6+ {[%clk 0:00:10.8]} 67. Bb3 {[%clk 0:00:03.4]}
67... Be4 {[%clk 0:00:08.8]} 68. Qg4+ {[%clk 0:00:03.1]} 68... Kf2 {[%clk
0:00:08.2]} 69. Qcg3+ {[%clk 0:00:03.3]} 69... Kf1 {[%clk 0:00:07.8]} 70. Q4f4+
{[%clk 0:00:03.5]} 70... Ke2 {[%clk 0:00:07]} 71. Qh2+ {[%clk 0:00:02.2]} 71...
Ke1 {[%clk 0:00:06.2]} 72. Qxe4+ {[%clk 0:00:02.7]} 72... Kd1 {[%clk 0:00:07]}
73. Qeh1+ {[%clk 0:00:03]} 1-0

[Event "Early-Titled-Tuesday-Blitz-January-16-2024"]
[Site "Chess.com"]
[Date "2024.01.16"]
[Round "9"]
[White "FMVolodymyrSakun"]
[Black "Alenzer"]
[Result "1/2-1/2"]
[WhiteElo "2534"]
[BlackElo "2148"]
[TimeControl "180+1"]
[EndTime "9:50:11 PST"]
[Termination "Game drawn by stalemate"]

1. e4 {[%clk 0:03:00.9]} 1... c5 {[%clk 0:02:58.8]} 2. Nf3 {[%clk 0:03:00.2]}
2... e6 {[%clk 0:02:58.4]} 3. d4 {[%clk 0:02:59.9]} 3... cxd4 {[%clk 0:02:58.1]}
4. Nxd4 {[%clk 0:03:00.3]} 4... Nf6 {[%clk 0:02:57.6]} 5. Bd3 {[%clk 0:02:59.9]}
5... Nc6 {[%clk 0:02:55.6]} 6. Be3 {[%clk 0:02:58.4]} 6... d5 {[%clk 0:02:52.9]}
7. Nxc6 {[%clk 0:02:57.8]} 7... bxc6 {[%clk 0:02:52.6]} 8. exd5 {[%clk
0:02:56.5]} 8... cxd5 {[%clk 0:02:48]} 9. O-O {[%clk 0:02:52]} 9... Bd6 {[%clk
0:02:47]} 10. h3 {[%clk 0:02:45.8]} 10... O-O {[%clk 0:02:42.8]} 11. c4 {[%clk
0:02:43]} 11... dxc4 {[%clk 0:02:34]} 12. Bxc4 {[%clk 0:02:41.7]} 12... Bb7
{[%clk 0:02:31.7]} 13. Nc3 {[%clk 0:02:33.3]} 13... Qe7 {[%clk 0:02:06.1]} 14.
Qb3 {[%clk 0:02:25.9]} 14... a5 {[%clk 0:01:57.3]} 15. Bg5 {[%clk 0:02:24.7]}
15... Rab8 {[%clk 0:01:51.4]} 16. Qc2 {[%clk 0:02:21.2]} 16... h6 {[%clk
0:01:48.3]} 17. Be3 {[%clk 0:02:19.7]} 17... Rfc8 {[%clk 0:01:44.2]} 18. Bd3
{[%clk 0:02:18.4]} 18... Nd5 {[%clk 0:01:43]} 19. Nxd5 {[%clk 0:02:10]} 19...
Bxd5 {[%clk 0:01:36.5]} 20. Qe2 {[%clk 0:02:05.5]} 20... Qf6 {[%clk 0:01:29]}
21. b3 {[%clk 0:02:02.9]} 21... Qe5 {[%clk 0:01:23.9]} 22. g3 {[%clk 0:01:59.2]}
22... f5 {[%clk 0:01:19.7]} 23. Rac1 {[%clk 0:01:50.9]} 23... Qf6 {[%clk
0:01:10.7]} 24. Bc4 {[%clk 0:01:49.3]} 24... Be4 {[%clk 0:00:43.2]} 25. Rfd1
{[%clk 0:01:41.5]} 25... Be5 {[%clk 0:00:35.7]} 26. Ba6 {[%clk 0:01:31.2]} 26...
Rd8 {[%clk 0:00:29.4]} 27. Rxd8+ {[%clk 0:01:18.5]} 27... Rxd8 {[%clk
0:00:30.3]} 28. Rd1 {[%clk 0:01:17.6]} 28... Kh7 {[%clk 0:00:24.5]} 29. Rxd8
{[%clk 0:01:16.5]} 29... Qxd8 {[%clk 0:00:24.3]} 30. Bc4 {[%clk 0:01:16.9]}
30... Qd6 {[%clk 0:00:23.6]} 31. Qd2 {[%clk 0:01:11.3]} 31... Qc6 {[%clk
0:00:21.1]} 32. Kf1 {[%clk 0:01:05.7]} 32... Bg2+ {[%clk 0:00:20.4]} 33. Ke1
{[%clk 0:01:05.6]} 33... Bxh3 {[%clk 0:00:20.7]} 34. Qd8 {[%clk 0:01:01.2]}
34... Bg4 {[%clk 0:00:18.6]} 35. Qe7 {[%clk 0:00:59.6]} 35... Qf3 {[%clk
0:00:17.8]} 36. Qd7 {[%clk 0:00:51]} 36... Qh1+ {[%clk 0:00:17.6]} 37. Bf1
{[%clk 0:00:48.9]} 37... Bh3 {[%clk 0:00:16.9]} 38. Qd3 {[%clk 0:00:48.5]} 38...
Bg4 {[%clk 0:00:14.4]} 39. Kd2 {[%clk 0:00:46.1]} 39... Qf3 {[%clk 0:00:13.4]}
40. Be2 {[%clk 0:00:45.4]} 40... Qxe2+ {[%clk 0:00:12.6]} 41. Qxe2 {[%clk
0:00:45.4]} 41... Bxe2 {[%clk 0:00:13.5]} 42. Kxe2 {[%clk 0:00:45.9]} 42... Kg6
{[%clk 0:00:14]} 43. Kd3 {[%clk 0:00:46]} 43... Kf6 {[%clk 0:00:13.8]} 44. Bd2
{[%clk 0:00:45.6]} 44... Bc7 {[%clk 0:00:13.5]} 45. Bc3+ {[%clk 0:00:45.7]}
45... e5 {[%clk 0:00:13.9]} 46. Kc4 {[%clk 0:00:46.2]} 46... Ke6 {[%clk
0:00:14.3]} 47. Kb5 {[%clk 0:00:45.5]} 47... g5 {[%clk 0:00:12.5]} 48. Bxa5
{[%clk 0:00:45.6]} 48... Bd6 {[%clk 0:00:12.6]} 49. Bc3 {[%clk 0:00:45.4]} 49...
e4 {[%clk 0:00:11.6]} 50. a4 {[%clk 0:00:45.3]} 50... e3 {[%clk 0:00:11.6]} 51.
fxe3 {[%clk 0:00:45.2]} 51... Bxg3 {[%clk 0:00:11.7]} 52. a5 {[%clk 0:00:45.5]}
52... f4 {[%clk 0:00:11.3]} 53. exf4 {[%clk 0:00:44.7]} 53... gxf4 {[%clk
0:00:11.8]} 54. a6 {[%clk 0:00:44.6]} 54... f3 {[%clk 0:00:12.2]} 55. a7 {[%clk
0:00:44.5]} 55... f2 {[%clk 0:00:11.7]} 56. a8=Q {[%clk 0:00:44.2]} 56... f1=Q+
{[%clk 0:00:12.1]} 57. Kb6 {[%clk 0:00:34.1]} 57... Bf2+ {[%clk 0:00:11.4]} 58.
Kc7 {[%clk 0:00:31.7]} 58... Bg3+ {[%clk 0:00:09.5]} 59. Kb6 {[%clk 0:00:25.9]}
59... Qf2+ {[%clk 0:00:09.7]} 60. Kb5 {[%clk 0:00:24.6]} 60... Qe2+ {[%clk
0:00:09.9]} 61. Kb6 {[%clk 0:00:15.3]} 61... Qe3+ {[%clk 0:00:10.2]} 62. Kb5
{[%clk 0:00:14.6]} 62... Qxc3 {[%clk 0:00:09.8]} 63. Qe4+ {[%clk 0:00:13]} 63...
Kf6 {[%clk 0:00:09.2]} 64. b4 {[%clk 0:00:11.7]} 64... Qe5+ {[%clk 0:00:08.6]}
65. Qxe5+ {[%clk 0:00:11.5]} 65... Bxe5 {[%clk 0:00:09.3]} 66. Kc6 {[%clk
0:00:11.8]} 66... Bd4 {[%clk 0:00:09.8]} 67. Kd5 {[%clk 0:00:11]} 67... Bf2
{[%clk 0:00:09.4]} 68. Ke4 {[%clk 0:00:11.5]} 68... Kg5 {[%clk 0:00:09.1]} 69.
Kf3 {[%clk 0:00:12.1]} 69... Bb6 {[%clk 0:00:08]} 70. Kg2 {[%clk 0:00:11.8]}
70... h5 {[%clk 0:00:07.6]} 71. b5 {[%clk 0:00:12]} 71... Kg4 {[%clk 0:00:07.4]}
72. Kh1 {[%clk 0:00:12.1]} 72... Kf3 {[%clk 0:00:06.4]} 73. Kh2 {[%clk
0:00:11.6]} 73... Ke4 {[%clk 0:00:06.5]} 74. Kh3 {[%clk 0:00:11.3]} 74... Kf5
{[%clk 0:00:02.9]} 75. Kh4 {[%clk 0:00:09.6]} 75... Kg6 {[%clk 0:00:03.8]} 76.
Kg3 {[%clk 0:00:09.8]} 76... Kg5 {[%clk 0:00:04.4]} 77. Kh3 {[%clk 0:00:10.1]}
77... Be3 {[%clk 0:00:04.2]} 78. b6 {[%clk 0:00:09.7]} 78... Bxb6 {[%clk
0:00:04.1]} 79. Kh2 {[%clk 0:00:09.9]} 79... Kg4 {[%clk 0:00:04]} 80. Kg2 {[%clk
0:00:10.3]} 80... Bc7 {[%clk 0:00:04.3]} 81. Kh1 {[%clk 0:00:10.8]} 81... h4
{[%clk 0:00:04.6]} 82. Kg2 {[%clk 0:00:11]} 82... Kf4 {[%clk 0:00:04]} 83. Kh1
{[%clk 0:00:11.5]} 83... Kg5 {[%clk 0:00:04.8]} 84. Kg2 {[%clk 0:00:11.6]} 84...
Kg4 {[%clk 0:00:05.7]} 85. Kh1 {[%clk 0:00:12]} 85... Kh3 {[%clk 0:00:06.6]} 86.
Kg1 {[%clk 0:00:12.3]} 86... Bg3 {[%clk 0:00:06.2]} 87. Kh1 {[%clk 0:00:12.8]}
87... Bf4 {[%clk 0:00:06.3]} 88. Kg1 {[%clk 0:00:13.4]} 88... Be5 {[%clk
0:00:06.3]} 89. Kh1 {[%clk 0:00:14]} 89... Kg4 {[%clk 0:00:06.8]} 90. Kg1 {[%clk
0:00:14.6]} 90... h3 {[%clk 0:00:07.1]} 91. Kh1 {[%clk 0:00:15.1]} 91... Kf3
{[%clk 0:00:07.5]} 92. Kg1 {[%clk 0:00:15.1]} 92... Bg3 {[%clk 0:00:07.2]} 93.
Kh1 {[%clk 0:00:15.5]} 93... h2 {[%clk 0:00:07.5]} 1/2-1/2

[Event "Early-Titled-Tuesday-Blitz-January-16-2024"]
[Site "Chess.com"]
[Date "2024.01.16"]
[Round "9"]
[White "blitzking1729"]
[Black "Grossboss19"]
[Result "1/2-1/2"]
[WhiteElo "2688"]
[BlackElo "2545"]
[TimeControl "180+1"]
[EndTime "9:50:12 PST"]
[Termination "Game drawn - insufficient material"]

1. c4 {[%clk 0:02:57.1]} 1... e6 {[%clk 0:02:59.5]} 2. Nf3 {[%clk 0:02:55.9]}
2... d5 {[%clk 0:03:00.2]} 3. e3 {[%clk 0:02:55.5]} 3... a6 {[%clk 0:02:58.7]}
4. Nc3 {[%clk 0:02:54.2]} 4... dxc4 {[%clk 0:02:58.4]} 5. Bxc4 {[%clk
0:02:53.6]} 5... b5 {[%clk 0:02:58.6]} 6. Be2 {[%clk 0:02:53.2]} 6... Bb7 {[%clk
0:02:57.6]} 7. d4 {[%clk 0:02:49.9]} 7... c5 {[%clk 0:02:57.4]} 8. O-O {[%clk
0:02:46.9]} 8... Nf6 {[%clk 0:02:56.6]} 9. dxc5 {[%clk 0:02:45.1]} 9... Bxc5
{[%clk 0:02:53.7]} 10. Qxd8+ {[%clk 0:02:44.1]} 10... Kxd8 {[%clk 0:02:54.6]}
11. b3 {[%clk 0:02:44.4]} 11... Ke7 {[%clk 0:02:54.4]} 12. Bb2 {[%clk
0:02:44.8]} 12... Nbd7 {[%clk 0:02:52]} 13. Rac1 {[%clk 0:02:44.1]} 13... Rac8
{[%clk 0:02:50.8]} 14. Rfd1 {[%clk 0:02:43.4]} 14... Rhd8 {[%clk 0:02:49.4]} 15.
h3 {[%clk 0:02:42.4]} 15... h6 {[%clk 0:02:48.3]} 16. Kf1 {[%clk 0:02:41.2]}
16... Bb6 {[%clk 0:02:45]} 17. a4 {[%clk 0:02:38.2]} 17... b4 {[%clk 0:02:41.9]}
18. Nb1 {[%clk 0:02:38.2]} 18... a5 {[%clk 0:02:34.6]} 19. Nbd2 {[%clk 0:02:37]}
19... Rxc1 {[%clk 0:01:53.3]} 20. Rxc1 {[%clk 0:02:30.9]} 20... Rc8 {[%clk
0:01:51]} 21. Nc4 {[%clk 0:02:27.4]} 21... Bc7 {[%clk 0:01:45.7]} 22. Nd4 {[%clk
0:02:11.2]} 22... Ne8 {[%clk 0:01:40.5]} 23. Nb5 {[%clk 0:02:10.4]} 23... Bd8
{[%clk 0:01:40.5]} 24. Rd1 {[%clk 0:02:02.6]} 24... Bd5 {[%clk 0:01:37.1]} 25.
f3 {[%clk 0:01:28.3]} 25... Nc5 {[%clk 0:01:24.8]} 26. Nd4 {[%clk 0:01:10.2]}
26... Nxb3 {[%clk 0:01:07.1]} 27. Nxb3 {[%clk 0:00:54.9]} 27... Bxc4 {[%clk
0:01:07]} 28. Bxc4 {[%clk 0:00:54.2]} 28... Rxc4 {[%clk 0:01:07.9]} 29. Rd2
{[%clk 0:00:53.2]} 29... Bb6 {[%clk 0:01:06.7]} 30. Ke2 {[%clk 0:00:52.8]} 30...
f6 {[%clk 0:01:05]} 31. Bd4 {[%clk 0:00:48.9]} 31... Bxd4 {[%clk 0:01:03.8]} 32.
Rxd4 {[%clk 0:00:48.9]} 32... Rc2+ {[%clk 0:00:58.9]} 33. Rd2 {[%clk 0:00:48.6]}
33... Rc3 {[%clk 0:00:37.7]} 34. Nxa5 {[%clk 0:00:41.1]} 34... Nc7 {[%clk
0:00:36.1]} 35. Rb2 {[%clk 0:00:31]} 35... Na6 {[%clk 0:00:31.5]} 36. Kd2 {[%clk
0:00:30.7]} 36... Rc5 {[%clk 0:00:24.5]} 37. Nb3 {[%clk 0:00:28.2]} 37... Rd5+
{[%clk 0:00:24.8]} 38. Ke2 {[%clk 0:00:25.9]} 38... Rd6 {[%clk 0:00:20.4]} 39.
Rc2 {[%clk 0:00:24.3]} 39... Kd7 {[%clk 0:00:20.8]} 40. Na5 {[%clk 0:00:20.2]}
40... Rb6 {[%clk 0:00:18.8]} 41. Nc4 {[%clk 0:00:20.1]} 41... Rc6 {[%clk
0:00:17.6]} 42. Rd2+ {[%clk 0:00:17.6]} 42... Kc7 {[%clk 0:00:17]} 43. Na5
{[%clk 0:00:17.3]} 43... Rc3 {[%clk 0:00:17.2]} 44. Rd3 {[%clk 0:00:17.5]} 44...
Rc2+ {[%clk 0:00:12.7]} 45. Rd2 {[%clk 0:00:17.9]} 45... Rc3 {[%clk 0:00:12.5]}
46. Kd1 {[%clk 0:00:14.1]} 46... Nc5 {[%clk 0:00:10.6]} 47. Rc2 {[%clk
0:00:12.5]} 47... Nxa4 {[%clk 0:00:10.8]} 48. Nb3 {[%clk 0:00:11.2]} 48... Kd6
{[%clk 0:00:07.6]} 49. Nd2 {[%clk 0:00:09.2]} 49... Kd5 {[%clk 0:00:05.2]} 50.
Ra2 {[%clk 0:00:06.1]} 50... Ra3 {[%clk 0:00:05]} 51. Rc2 {[%clk 0:00:04.1]}
51... Rxe3 {[%clk 0:00:03.3]} 52. Rc8 {[%clk 0:00:03.4]} 52... Rc3 {[%clk
0:00:03.7]} 53. Rd8+ {[%clk 0:00:03.4]} 53... Kc5 {[%clk 0:00:04.3]} 54. Ne4+
{[%clk 0:00:03.8]} 54... Kc4 {[%clk 0:00:04.5]} 55. Nxc3 {[%clk 0:00:04.4]}
55... Nxc3+ {[%clk 0:00:04.9]} 56. Kd2 {[%clk 0:00:04.6]} 56... Kb3 {[%clk
0:00:04]} 57. Rg8 {[%clk 0:00:04]} 57... Kb2 {[%clk 0:00:01.9]} 58. Rxg7 {[%clk
0:00:04.2]} 58... Nb1+ {[%clk 0:00:02.8]} 59. Kd3 {[%clk 0:00:03.9]} 59... b3
{[%clk 0:00:03]} 60. Rb7 {[%clk 0:00:04.4]} 60... Na3 {[%clk 0:00:03.2]} 61. Ra7
{[%clk 0:00:03.5]} 61... Ka2 {[%clk 0:00:02.3]} 62. Rb7 {[%clk 0:00:03.1]} 62...
b2 {[%clk 0:00:02.8]} 63. Kd4 {[%clk 0:00:03.1]} 63... b1=Q {[%clk 0:00:02.9]}
64. Rxb1 {[%clk 0:00:03.6]} 64... Kxb1 {[%clk 0:00:03.8]} 65. Kc5 {[%clk
0:00:04.4]} 65... Kc2 {[%clk 0:00:04.5]} 66. Kd6 {[%clk 0:00:05]} 66... e5
{[%clk 0:00:04.8]} 67. Ke6 {[%clk 0:00:05.6]} 67... Kd3 {[%clk 0:00:05.3]} 68.
Kxf6 {[%clk 0:00:06.2]} 68... Nc4 {[%clk 0:00:06]} 69. Kf5 {[%clk 0:00:05.8]}
69... Ke3 {[%clk 0:00:06.3]} 70. h4 {[%clk 0:00:05.9]} 70... Kf2 {[%clk
0:00:06.2]} 71. g4 {[%clk 0:00:05.8]} 71... Kxf3 {[%clk 0:00:05.6]} 72. g5
{[%clk 0:00:05.7]} 72... hxg5 {[%clk 0:00:06.1]} 73. hxg5 {[%clk 0:00:06.2]}
73... e4 {[%clk 0:00:05.8]} 74. g6 {[%clk 0:00:06.3]} 74... Ne3+ {[%clk
0:00:05.8]} 75. Ke6 {[%clk 0:00:06.1]} 75... Ng4 {[%clk 0:00:05.3]} 76. g7
{[%clk 0:00:06.2]} 76... Nh6 {[%clk 0:00:05.9]} 77. Kf6 {[%clk 0:00:06.8]} 77...
e3 {[%clk 0:00:05.9]} 78. Kg6 {[%clk 0:00:07.5]} 78... Ng8 {[%clk 0:00:05.3]}
79. Kf7 {[%clk 0:00:08.1]} 79... e2 {[%clk 0:00:03.5]} 80. Kxg8 {[%clk
0:00:08.1]} 80... e1=Q {[%clk 0:00:04.4]} 81. Kf7 {[%clk 0:00:08.7]} 81... Qe4
{[%clk 0:00:01.5]} 82. g8=Q {[%clk 0:00:09.6]} 82... Qd5+ {[%clk 0:00:01.8]} 83.
Kg7 {[%clk 0:00:09.8]} 83... Qxg8+ {[%clk 0:00:02.7]} 84. Kxg8 {[%clk
0:00:10.7]} 1/2-1/2